bitfinex/quotes_ETHUSD_20220220
["timestamp","ask_amount","ask_price","bid_price","bid_amount"]
[1645339050457,0.94967,2635.5,2634.9,0.454]
[1645339050659,0.94967,2635.5,2634.6,0.454]
[1645339050912,0.94967,2635.5,2634.9,0.00139351]
[1645339050913,1.5498,2635.5,2634.9,0.00139351]
[1645339051107,0.5,2635.0,2634.9,0.00139351]
[1645339051308,0.8,2635.0,2634.9,0.00139351]
[1645339051512,1.1,2635.0,2634.9,0.00139351]
[1645339051907,0.94996,2634.7,2633.9,3.954]
[1645339052106,0.94996,2634.7,2634.0,1.6137272]
[1645339054315,0.5,2634.6,2634.0,1.6137272]
[1645339054558,1.51579707,2635.0,2634.0,1.6137272]
[1645339054964,0.94987,2635.0,2634.2,1.16360493]
[1645339055164,0.94987,2635.0,2634.3,1.6137272]
[1645339055560,1.94987,2635.0,2634.2,1.16360493]
[1645339055860,1.94987,2635.0,2634.1,0.00662127]
[1645339055861,0.94989,2634.8,2634.1,0.00662127]
[1645339056059,0.94989,2634.8,2634.2,1.61366539]
[1645339056868,0.94989,2634.8,2634.3,1.61366539]
[1645339057061,0.94989,2634.8,2634.0,0.00708302]
[1645339057062,0.94989,2634.8,2634.0,1.17453907]
[1645339057260,0.94989,2634.8,2634.1,2.06765598]
[1645339057461,0.94989,2634.8,2634.2,1.61365598]
[1645339057664,0.94989,2634.8,2634.2,2.06765598]
[1645339057861,0.94989,2634.8,2634.3,1.61365598]
[1645339059202,0.5,2634.6,2634.3,1.61365598]
[1645339059600,1.44996,2634.6,2634.3,1.61365598]
[1645339060102,0.5,2634.6,2634.3,1.61365598]
[1645339060302,1.2148,2635.3,2634.9,0.92290114]
[1645339060509,12.82093,2636.4,2635.0,2.06725567]
[1645339060510,18.39405,2636.1,2635.0,2.06725567]
[1645339060701,18.39405,2636.1,2635.1,1.61325567]
[1645339060901,0.94955,2635.9,2635.2,0.454]
[1645339061701,1.17847064,2636.0,2635.3,30.61304315]
[1645339061899,1.17847064,2636.0,2635.4,2.06704315]
[1645339062161,0.17847064,2636.0,2635.4,1.49940024]
[1645339062355,4.09285,2636.1,2635.5,1.61301859]
[1645339062356,1.2435,2636.1,2635.5,1.61301859]
[1645339062654,0.57909014,2636.2,2635.6,0.454]
[1645339064860,0.94949,2636.1,2635.6,0.454]
[1645339065459,1.8991,2636.0,2635.6,0.454]
[1645339066402,1.8991,2636.0,2635.7,1.61287357]
[1645339066605,1.8991,2636.0,2635.8,0.454]
[1645339070353,2.8991,2636.0,2635.8,0.454]
[1645339070554,2.8991,2636.0,2635.4,0.00138069]
[1645339071152,2.8991,2636.0,2635.3,1.61305002]
[1645339071355,4.4496,2635.9,2635.3,1.61305002]
[1645339071553,0.94967,2635.7,2635.2,0.0013822]
[1645339071752,1.24967,2635.7,2635.2,0.0013822]
[1645339071952,0.94967,2635.7,2635.2,0.0013822]
[1645339072166,5.0,2635.4,2634.3,0.00518494]
[1645339072370,5.0,2635.4,2633.9,0.71877326]
[1645339072371,0.5677,2635.1,2633.9,0.71877326]
[1645339072563,0.5677,2635.1,2634.3,0.00518494]
[1645339072564,0.95018,2634.4,2634.3,0.00518494]
[1645339072859,0.95018,2634.4,2633.0,0.71877326]
[1645339072860,33.0,2634.3,2633.0,0.71877326]
[1645339073056,5.0,2633.9,2633.2,0.00096]
[1645339073313,38.09101,2633.8,2632.8,0.00096]
[1645339073508,38.09101,2633.8,2632.6,0.00096]
[1645339073509,39.66761,2633.8,2632.6,0.00096]
[1645339073709,0.3,2633.6,2632.4,0.00096]
[1645339073911,0.95062,2633.5,2632.5,0.71877326]
[1645339074108,0.95062,2633.5,2632.7,0.71877326]
[1645339074308,0.95062,2633.5,2632.8,0.00096]
[1645339074309,0.5,2633.0,2632.8,0.00096]
[1645339074508,3.8,2633.5,2632.5,0.00096]
[1645339074706,0.3,2633.5,2632.3,0.00096]
[1645339074914,0.95061,2632.9,2632.3,0.00096]
[1645339075113,0.95061,2632.9,2632.6,1.02374054]
[1645339075310,0.95061,2632.9,2632.6,0.00269077]
[1645339075906,0.95061,2632.9,2632.3,0.00096]
[1645339076106,0.95061,2632.9,2632.5,0.00810515]
[1645339076911,0.55061,2632.9,2632.5,0.00810515]
[1645339077156,0.55061,2632.9,2632.5,0.97262313]
[1645339078151,0.55061,2632.9,2632.3,0.00096]
[1645339078353,1.50126,2632.9,2632.1,0.00096]
[1645339078552,0.95063,2632.6,2632.1,0.00096]
[1645339078753,1.0,2633.1,2632.1,0.00096]
[1645339078952,22.9012,2633.2,2631.7,0.95617784]
[1645339079166,22.9012,2633.2,2632.1,0.00096]
[1645339079167,3.5,2633.1,2632.1,0.00096]
[1645339079357,3.5,2633.1,2631.8,0.00096]
[1645339079358,1.0,2633.0,2631.8,0.00096]
[1645339079557,0.95082,2632.6,2632.0,0.00096]
[1645339079755,1.25082,2632.6,2631.8,0.00096]
[1645339079957,0.95092,2632.4,2632.2,0.00800272]
[1645339080355,0.3,2632.3,2631.9,0.00608267]
[1645339080656,1.90195,2632.3,2631.9,0.00096]
[1645339080906,1.90195,2632.3,2631.8,0.6]
[1645339080907,0.95094,2632.3,2631.8,1.526742]
[1645339081108,0.5,2632.4,2631.8,0.6]
[1645339081306,3.5,2632.8,2631.8,0.60096]
[1645339081505,0.1899,2632.8,2631.8,0.60096]
[1645339081802,0.95063,2632.5,2631.8,0.90096]
[1645339082008,0.95063,2632.5,2631.8,0.60096]
[1645339082405,0.1899,2632.7,2632.5,0.7718299]
[1645339082604,2.85256,2632.8,2632.5,0.7718299]
[1645339082809,1.3,2632.7,2632.5,0.7718299]
[1645339083005,0.95065,2632.7,2632.5,0.7718299]
[1645339083406,2.90148,2632.7,2632.5,0.7718299]
[1645339083605,0.95068,2632.6,2632.5,0.7718299]
[1645339084308,1.95068,2632.6,2632.5,0.7718299]
[1645339085784,6.05068,2632.6,2632.5,0.7718299]
[1645339086185,2.25068,2632.6,2632.5,0.7718299]
[1645339087586,2.25068,2632.6,2632.3,0.00624189]
[1645339087587,42.5,2632.5,2632.3,0.00624189]
[1645339087788,4.0,2632.4,2632.0,0.00096]
[1645339087990,3.80441,2632.3,2631.8,0.6]
[1645339088196,4.40441,2632.3,2631.8,0.59999988]
[1645339088408,1.0,2632.2,2631.8,0.59999988]
[1645339088609,1.3,2632.2,2631.8,0.59999988]
[1645339088910,5.10467,2632.2,2631.8,0.59999988]
[1645339089410,5.10467,2632.2,2631.1,0.01096]
[1645339089411,1.90231,2632.0,2631.7,0.00546279]
[1645339089723,43.25111,2631.9,2631.5,0.00415215]
[1645339089911,2.85395,2631.8,2631.5,0.00415215]
[1645339090310,0.95124,2631.6,2631.1,0.01096]
[1645339090515,0.95124,2631.6,2631.1,0.01]
[1645339090516,2.85366,2631.6,2631.1,0.01]
[1645339090910,1.0,2631.5,2631.1,0.01]
[1645339091512,2.90242,2631.5,2631.1,0.01]
[1645339091712,0.95121,2631.5,2631.1,0.01]
[1645339091912,3.1535216,2632.0,2631.1,0.01]
[1645339091913,2.85357,2632.1,2631.1,0.01]
[1645339092364,2.85357,2632.1,2631.1,0.01096]
[1645339092864,0.95095,2631.7,2631.1,0.01096]
[1645339093065,0.95095,2631.7,2631.3,0.00512215]
[1645339093962,0.95095,2631.7,2631.1,0.0140336]
[1645339093963,0.95109,2631.6,2631.1,0.01096]
[1645339094163,0.95109,2631.6,2631.2,0.00512234]
[1645339094164,14.0,2631.4,2631.2,0.00512234]
[1645339094360,0.95132,2631.5,2631.2,0.00512234]
[1645339095061,4.45132,2631.5,2630.2,0.00096]
[1645339095265,4.45132,2631.5,2629.8,1.054]
[1645339095266,0.95148,2630.9,2629.9,1.51631459]
[1645339095461,1.25148,2630.9,2629.9,1.51727459]
[1645339095666,1.95148,2630.9,2629.9,1.51727459]
[1645339095913,2.25148,2630.9,2630.1,1.18027047]
[1645339096115,2.25148,2630.9,2629.3,2.0079591]
[1645339096116,45.0,2630.7,2629.3,2.0079591]
[1645339096352,45.0,2630.7,2628.7,2.45988]
[1645339096353,4.8,2630.9,2628.3,2.71162869]
[1645339096354,5.0,2630.5,2628.3,2.71162869]
[1645339096540,5.0,2630.5,2627.7,5.21466027]
[1645339096541,2.41550999,2628.8,2627.8,0.01227577]
[1645339096733,5.67,2627.9,2627.3,0.21515935]
[1645339096921,5.67,2627.9,2627.6,0.00096]
[1645339096922,0.454,2627.8,2627.6,0.00096]
[1645339097121,18.33358269,2626.4,2626.1,0.0501]
[1645339097321,0.2808,2627.0,2626.0,0.71082923]
[1645339097322,0.2396,2626.5,2626.0,0.71082923]
[1645339097517,18.33358269,2626.3,2626.2,0.04490545]
[1645339097718,0.8384,2626.3,2626.2,0.04490545]
[1645339097920,18.28867724,2626.1,2626.0,0.00488878]
[1645339098116,16.81717724,2626.1,2625.7,0.00389356]
[1645339098321,16.81717724,2626.1,2625.7,0.00293356]
[1645339098517,16.81717724,2626.1,2625.9,2.58449001]
[1645339098518,16.81717724,2626.0,2625.9,2.58449001]
[1645339099021,16.81717724,2626.0,2624.9,7.34147873]
[1645339099022,0.5123,2626.1,2625.1,5.00096]
[1645339099218,28.5,2626.4,2625.3,13.5]
[1645339099219,0.2056,2626.4,2625.3,13.5]
[1645339099420,0.2056,2626.4,2625.4,0.00096]
[1645339099421,0.05116181,2626.1,2625.4,0.00096]
[1645339099710,0.05116181,2626.1,2626.0,0.01253153]
[1645339099711,0.3632,2626.1,2626.0,0.01253153]
[1645339099902,0.3632,2626.1,2625.5,0.01265819]
[1645339100111,0.3632,2626.1,2625.1,0.00096]
[1645339100348,1.0,2625.9,2625.7,0.01295816]
[1645339100502,2.17579,2625.9,2624.9,1.10291153]
[1645339100706,0.3,2625.9,2624.9,1.05387153]
[1645339100912,0.3,2625.9,2625.0,0.00096]
[1645339101103,0.95323,2625.8,2625.0,0.00096]
[1645339101306,2.85968,2626.2,2624.8,5.0]
[1645339101307,0.1904,2626.0,2624.8,5.0]
[1645339101506,2.85968,2626.2,2624.9,0.00096]
[1645339101704,2.85945,2626.7,2625.0,5.37995]
[1645339101909,0.5,2627.6,2625.0,5.37995]
[1645339101910,0.2846834,2627.5,2625.1,47.5]
[1645339102110,0.454,2629.5,2626.5,31.5]
[1645339102307,19.05232,2630.0,2626.5,31.5]
[1645339102308,0.1903,2628.6,2627.3,0.5513]
[1645339102509,1.90489,2628.6,2627.4,0.30096]
[1645339102722,0.20312199,2629.6,2628.0,10.97]
[1645339102723,144.3979,2628.5,2628.0,10.97]
[1645339102905,0.508,2629.7,2628.3,5.67]
[1645339103107,0.508,2629.7,2629.4,0.89704531]
[1645339103340,0.508,2629.7,2629.5,0.454]
[1645339103544,0.19,2631.1,2629.5,0.454]
[1645339103740,0.19,2631.1,2629.6,0.00096]
[1645339103941,0.95155,2630.2,2629.7,0.454]
[1645339104140,0.95155,2630.2,2629.8,0.00096]
[1645339104338,0.95155,2630.2,2629.8,0.454]
[1645339104740,0.1867,2630.5,2629.8,0.454]
[1645339104940,0.1867,2630.5,2629.9,0.00096]
[1645339105142,1.13815,2630.5,2630.0,0.454]
[1645339105341,1.13815,2630.5,2629.2,0.454]
[1645339105342,1.90376,2630.0,2629.2,0.454]
[1645339105540,39.0,2629.9,2629.0,0.6]
[1645339105743,0.01273119,2629.5,2629.1,0.00096]
[1645339105942,1.5,2629.1,2629.0,0.6]
[1645339106344,1.5,2629.1,2629.0,1.054]
[1645339106541,0.19779695,2630.2,2629.0,1.94429206]
[1645339106747,0.13819997,2630.4,2629.1,0.00096]
[1645339106942,0.5,2629.9,2629.4,1.0]
[1645339107176,1.2337,2631.6,2629.7,0.2721]
[1645339107177,0.95126,2631.1,2629.7,0.2721]
[1645339107373,1.90235,2631.5,2629.8,0.644]
[1645339107572,0.00338235,2629.9,2629.8,0.45496]
[1645339107772,0.00338235,2629.9,2629.8,1.45456977]
[1645339107973,0.00338235,2629.9,2629.8,0.454]
[1645339108173,0.00338235,2629.9,2629.5,0.00460534]
[1645339108373,0.9518873,2629.9,2629.1,0.00096]
[1645339108571,1.03807616,2629.8,2629.1,0.00096]
[1645339108779,2.03807616,2629.8,2629.6,0.00460517]
[1645339108973,0.27481616,2629.7,2629.2,1.00524134]
[1645339109176,2.85908235,2630.0,2629.3,3.954]
[1645339109177,0.00338235,2630.0,2629.3,3.954]
[1645339109371,0.00338235,2630.0,2629.3,0.45496]
[1645339109571,1.1414922,2631.1,2629.3,0.45496]
[1645339109772,0.95153,2631.0,2629.4,3.5]
[1645339109973,2.85489,2630.8,2630.0,1.03362593]
[1645339110175,2.85489,2630.8,2630.1,6e-05]
[1645339110176,0.95147,2630.4,2630.1,6e-05]
[1645339110371,0.95147,2630.4,2628.9,3.5]
[1645339110372,0.19,2630.3,2628.9,3.5]
[1645339110573,0.19,2630.3,2628.9,0.00096]
[1645339110806,0.19,2630.3,2628.5,3.50096]
[1645339110807,1.0,2630.2,2628.5,3.50096]
[1645339111010,0.19,2630.1,2628.6,0.00096]
[1645339111208,0.19,2630.5,2629.1,1.15301877]
[1645339111416,0.95193,2630.0,2629.2,0.00096]
[1645339111613,4.75193,2630.0,2629.2,0.00096]
[1645339111811,4.75193,2630.0,2627.7,0.89766]
[1645339111812,4.29,2630.0,2628.8,0.00096]
[1645339112012,5.40408,2629.9,2628.6,0.00096]
[1645339112209,0.19,2629.8,2627.9,0.00096]
[1645339112410,0.19,2629.8,2629.3,0.00386361]
[1645339112411,1.90746691,2629.7,2629.3,0.00386361]
[1645339113212,1.90409,2629.7,2628.3,0.00096]
[1645339113413,3.5,2629.6,2628.3,0.00096]
[1645339113613,3.5,2629.6,2627.7,0.454]
[1645339113614,0.19,2629.6,2629.2,0.00386376]
[1645339113917,0.00337678,2629.7,2629.2,0.00386376]
[1645339114119,2.85549,2630.3,2629.7,0.00675355]
[1645339114313,2.3795,2630.7,2629.7,0.00675355]
[1645339114770,0.95134,2630.9,2629.7,0.00771355]
[1645339114973,3.685,2630.8,2629.8,0.91924911]
[1645339115178,1.90342,2630.6,2629.9,0.00096]
[1645339115373,2.08712,2630.6,2629.7,0.00771355]
[1645339115573,2.08712,2630.6,2629.7,0.00675355]
[1645339115773,0.95171,2630.5,2629.7,0.00675355]
[1645339116075,1.90343,2630.5,2629.7,0.00675355]
[1645339116579,0.95171,2630.5,2629.7,0.00675355]
[1645339117172,0.0033769,2630.2,2629.7,0.00675355]
[1645339117373,0.95172,2630.1,2629.7,0.00675355]
[1645339117774,0.95172,2630.1,2629.5,1.00522699]
[1645339117975,0.0033769,2630.2,2629.5,1.00522699]
[1645339118175,3.5,2630.6,2629.5,1.00522699]
[1645339118420,0.0033769,2629.9,2629.2,0.00383338]
[1645339118618,0.0033769,2629.9,2629.6,0.00096]
[1645339118619,0.95172,2629.8,2629.6,0.00096]
[1645339118820,0.0033769,2629.9,2629.2,0.00383338]
[1645339119226,3.5,2630.8,2629.9,0.00675379]
[1645339119520,0.5,2631.0,2630.4,1.14127011]
[1645339119921,3.05204568,2631.4,2630.4,1.14127011]
[1645339120123,1.9027,2631.0,2630.5,0.00096]
[1645339120320,1.9027,2631.0,2629.9,0.00771379]
[1645339121220,1.9027,2631.0,2630.2,1.12697451]
[1645339121531,2.8543,2631.4,2630.3,0.00096]
[1645339121730,1.7337,2631.6,2630.4,5.454]
[1645339121731,1.9237,2631.6,2630.4,5.454]
[1645339121936,0.4,2631.6,2631.2,5.0]
[1645339122194,2.3419,2633.5,2631.4,47.5]
[1645339122378,0.19,2633.3,2633.0,0.97426374]
[1645339122572,0.19,2633.3,2633.0,1.63976374]
[1645339122573,0.04035807,2633.3,2633.0,1.63976374]
[1645339122768,0.1899,2633.4,2633.0,1.63976374]
[1645339122769,0.18025807,2633.4,2633.0,1.63976374]
[1645339122971,0.18025807,2633.4,2633.0,0.6655]
[1645339123177,0.18025807,2633.4,2631.7,3.5]
[1645339123178,7.08123807,2633.4,2631.7,3.5]
[1645339123372,7.08123807,2633.4,2631.6,0.454]
[1645339123373,0.00335758,2633.3,2631.6,0.454]
[1645339123572,0.95091,2632.6,2631.6,0.454]
[1645339123775,0.00335758,2633.3,2632.6,1.72300741]
[1645339124372,2.08117807,2633.4,2632.6,1.72300741]
[1645339124576,2.08117807,2633.4,2631.7,0.454]
[1645339124577,0.00335758,2633.1,2631.7,0.454]
[1645339124772,0.95093,2632.6,2631.3,0.454]
[1645339124971,1.11478053,2632.3,2631.0,1.34366424]
[1645339125285,1.90213,2632.2,2631.0,1.34462424]
[1645339125470,1.90213,2632.2,2631.0,1.34366424]
[1645339125909,0.00335761,2631.8,2631.0,1.34366424]
[1645339126111,0.00335761,2631.8,2631.7,0.89291647]
[1645339126310,0.00335761,2631.8,2631.0,0.454]
[1645339126514,1.90566761,2631.8,2630.8,0.00096]
[1645339126718,1.90566761,2631.8,2630.5,0.00096]
[1645339126719,5.0,2631.5,2630.5,0.00096]
[1645339126912,5.0,2631.5,2630.0,0.00096]
[1645339126913,1.90307,2631.3,2630.0,0.00096]
[1645339127119,1.90307,2631.3,2629.9,0.00675379]
[1645339127120,1.9030237,2631.1,2630.1,0.00096]
[1645339127313,2.9030237,2631.1,2629.9,0.87470144]
[1645339127609,2.9030237,2631.1,2630.0,0.00096]
[1645339127809,3.4030237,2631.1,2630.0,0.00096]
[1645339128012,1.0,2630.6,2629.9,0.00675379]
[1645339128211,2.90348,2630.6,2629.9,0.00675379]
[1645339128414,0.19775028,2631.0,2629.9,0.00675379]
[1645339128808,0.49775028,2631.0,2629.9,0.95222506]
[1645339129011,0.95175,2630.4,2630.0,0.00096]
[1645339129221,0.95175,2630.4,2629.1,0.00096]
[1645339129222,41.5,2630.3,2629.1,0.00096]
[1645339129412,42.6791,2630.3,2629.0,1.61659413]
[1645339129673,42.9791,2630.3,2629.1,0.00096]
[1645339129869,42.9791,2630.3,2628.7,0.86333183]
[1645339129870,0.87590446,2630.1,2628.7,0.86333183]
[1645339130071,42.9791,2630.3,2628.8,1.61763114]
[1645339130072,0.1792,2630.0,2628.8,1.61763114]
[1645339130370,0.95188,2630.0,2628.8,5.11763114]
[1645339130570,0.95187,2629.9,2628.8,1.61763114]
[1645339130770,0.95187,2629.9,2629.0,0.00323581]
[1645339130975,0.00334346,2630.0,2629.9,2.51395071]
[1645339131573,0.95139,2630.5,2629.9,2.51395071]
[1645339131774,1.90276,2630.8,2630.0,0.00096]
[1645339131972,0.19775028,2631.0,2630.0,0.00096]
[1645339132178,0.19775028,2631.0,2630.7,0.83951251]
[1645339132772,0.95119,2631.1,2630.7,0.83951251]
[1645339132970,0.95119,2631.1,2630.2,0.00096]
[1645339133170,0.95119,2631.1,2630.2,0.45496]
[1645339133407,0.95119,2631.1,2630.3,0.00096]
[1645339134009,0.95119,2631.1,2630.4,1.01887109]
[1645339134217,0.95119,2631.1,2630.5,0.00096]
[1645339134409,0.95119,2631.1,2630.3,0.00096]
[1645339134610,0.95119,2631.1,2630.0,0.00096]
[1645339134816,0.95152,2630.7,2630.0,0.00096]
[1645339135213,1.15415992,2630.6,2630.0,0.00096]
[1645339135412,0.1786,2630.6,2630.0,0.00096]
[1645339135611,0.00330141,2630.5,2630.0,0.00096]
[1645339135811,2.25497141,2630.5,2629.9,2.23446454]
[1645339136014,1.90337,2630.3,2629.9,2.23446454]
[1645339136810,0.00333952,2630.2,2629.9,2.23446454]
[1645339137074,0.95169,2630.2,2629.9,2.23446454]
[1645339137863,35.00500839,2630.1,2629.9,2.23446454]
[1645339138267,1.14915632,2630.5,2629.9,2.23446454]
[1645339138471,2.85455,2630.9,2629.9,2.23446454]
[1645339138472,2.85455,2630.9,2629.9,2.53446454]
[1645339138665,1.90245,2631.3,2630.0,1.61697105]
[1645339138867,1.90245,2631.3,2630.1,0.00096]
[1645339139466,0.95119,2631.1,2630.3,0.85902909]
[1645339139666,0.95119,2631.1,2630.1,0.00096]
[1645339139868,0.19770361,2631.4,2630.1,11.88496]
[1645339140071,0.19770361,2631.4,2630.3,11.43]
[1645339140268,0.19770361,2631.4,2630.5,11.43]
[1645339140467,0.00330141,2630.7,2630.5,11.884]
[1645339140670,0.00330141,2630.7,2630.5,12.184]
[1645339141112,0.00330141,2630.7,2630.6,12.39846143]
[1645339141313,2.8537,2631.8,2630.1,0.00096]
[1645339141514,0.95127,2631.6,2630.1,0.00096]
[1645339141714,0.00333952,2630.7,2630.1,0.00096]
[1645339142312,0.95144,2630.6,2630.1,0.00096]
[1645339142512,0.95144,2630.6,2630.3,1.17275645]
[1645339142721,2.85415,2631.4,2630.3,1.17275645]
[1645339142912,2.9026736,2631.5,2630.3,1.17275645]
[1645339143113,48.25956758,2631.6,2630.3,12.60275645]
[1645339143326,0.95108,2631.5,2630.5,11.43]
[1645339143516,0.95108,2631.5,2630.5,0.454]
[1645339144115,0.95108,2631.5,2630.5,0.754]
[1645339144593,0.95108,2631.5,2630.5,0.3]
[1645339144781,0.95131,2631.2,2630.1,0.00096]
[1645339144979,1.13027557,2631.3,2630.8,1.12444203]
[1645339145179,0.00327963,2631.1,2630.1,0.00096]
[1645339146183,48.16406721,2631.0,2630.1,0.00096]
[1645339146381,0.00331618,2630.7,2630.1,0.00096]
[1645339146781,0.00331618,2630.7,2630.1,1.91694868]
[1645339146983,0.00331618,2630.7,2630.2,1.61598868]
[1645339147182,0.00331618,2630.7,2630.1,0.00096]
[1645339147386,1.13027557,2631.3,2630.8,1.10952798]
[1645339147581,0.00331618,2630.5,2630.2,0.3]
[1645339147783,0.00331618,2630.5,2630.4,11.43]
[1645339148088,1.618e-05,2630.5,2630.4,13.04585123]
[1645339148321,1.618e-05,2630.5,2630.4,13.34585123]
[1645339148521,0.5,2631.6,2630.4,13.34585123]
[1645339148522,0.5,2631.6,2630.4,18.34585123]
[1645339148726,0.5,2631.6,2631.3,0.86673665]
[1645339148921,1.08915997,2631.9,2631.3,0.86673665]
[1645339148922,0.13819997,2631.9,2631.3,0.86673665]
[1645339149623,2.58106,2632.2,2631.4,3.5]
[1645339149826,0.5,2632.2,2631.5,1.61539986]
[1645339150022,0.5,2632.2,2631.4,3.5]
[1645339150023,0.00327963,2631.7,2631.4,3.5]
[1645339150221,0.00327963,2631.7,2631.4,0.3]
[1645339150423,0.00327963,2631.7,2631.5,1.61538657]
[1645339150424,7.963e-05,2631.7,2631.5,1.61538657]
[1645339150636,7.963e-05,2631.7,2631.6,14.93]
[1645339150826,0.5,2633.1,2631.6,18.16418657]
[1645339151027,0.5,2633.1,2631.8,11.43]
[1645339151226,1.901,2633.4,2631.8,11.43]
[1645339151227,1.901,2633.4,2632.0,11.43]
[1645339151425,1.901,2633.4,2632.2,11.43]
[1645339151661,0.5,2633.8,2632.4,11.43]
[1645339151829,1.21919245,2634.3,2632.4,11.43]
[1645339151830,0.1287,2634.4,2633.6,11.43]
[1645339152090,0.56269931,2635.6,2633.9,11.43]
[1645339152280,0.56269931,2635.6,2634.1,16.43]
[1645339152479,0.56269931,2635.6,2634.4,5.0]
[1645339152679,6.0256,2636.3,2634.5,15.384]
[1645339152878,0.91413156,2636.6,2635.3,1.00946456]
[1645339153183,0.5,2635.5,2633.7,0.53007957]
[1645339153383,0.01209237,2636.0,2634.5,0.454]
[1645339153578,0.01209237,2636.0,2633.8,0.454]
[1645339153579,0.5,2635.6,2633.8,0.454]
[1645339153878,0.5,2635.6,2632.9,0.71651937]
[1645339153879,0.95003,2635.1,2633.2,1.3]
[1645339154077,0.95003,2635.1,2633.3,1.61413257]
[1645339154078,0.68554734,2634.5,2633.3,1.61413257]
[1645339154278,0.98554734,2634.5,2633.2,0.454]
[1645339154477,0.276,2634.6,2633.2,0.454]
[1645339154677,0.01280986,2634.8,2633.3,1.61420305]
[1645339154877,0.00331467,2634.0,2633.3,5.56820305]
[1645339155078,0.00331467,2634.0,2633.3,0.454]
[1645339155480,0.00331467,2634.0,2633.9,0.93153377]
[1645339155685,0.5,2635.0,2633.7,0.454]
[1645339156112,0.8,2635.0,2633.7,0.454]
[1645339156315,1.0,2634.8,2633.7,0.454]
[1645339156512,0.94999,2634.5,2633.7,0.754]
[1645339156814,0.5,2635.0,2633.7,0.754]
[1645339157016,0.5,2635.0,2633.7,1.054]
[1645339157213,0.5,2635.0,2633.8,14.93]
[1645339157413,0.5,2635.0,2633.9,11.884]
[1645339157616,0.5,2635.0,2634.2,1.8991892]
[1645339157816,0.5,2635.0,2634.3,3.954]
[1645339158012,0.94965,2635.6,2634.3,3.954]
[1645339158013,0.94965,2635.6,2634.3,16.1737]
[1645339158219,0.94965,2635.6,2635.0,0.94595985]
[1645339159114,0.94965,2635.6,2635.0,275.0]
[1645339159573,0.00330839,2635.4,2635.0,275.0]
[1645339160562,0.94965,2635.6,2635.1,0.94621398]
[1645339160767,0.00330839,2635.3,2635.1,0.94621398]
[1645339161663,0.94965,2635.6,2635.1,0.94621398]
[1645339162364,0.00330839,2635.3,2635.1,0.94621398]
[1645339162565,0.00330839,2635.3,2635.1,1.24621398]
[1645339162865,1.89919,2635.9,2635.1,1.24621398]
[1645339163321,1.86572998,2635.9,2635.2,36.5]
[1645339163519,0.94959,2635.6,2635.2,36.5]
[1645339163718,0.94959,2635.6,2635.5,1.00222655]
[1645339163917,0.94959,2635.6,2635.3,3.5]
[1645339164119,0.94959,2635.6,2635.1,3.5]
[1645339164318,1.86572998,2635.9,2635.1,3.5]
[1645339165125,36.90872548,2636.1,2635.1,3.8]
[1645339165325,0.5,2636.3,2636.1,1.72074616]
[1645339165723,0.5,2636.3,2636.1,2.02074616]
[1645339165926,0.5,2636.3,2636.2,0.454]
[1645339166121,0.5,2636.3,2636.2,0.6435]
[1645339166320,0.5,2636.3,2636.2,12.0735]
[1645339166620,1.1921,2637.5,2636.2,1.6435]
[1645339167569,0.5,2637.5,2636.5,0.9487559]
[1645339167766,0.5,2637.5,2636.6,4.254]
[1645339167964,0.00331117,2637.0,2636.6,4.554]
[1645339168366,0.00331117,2637.0,2636.7,1.1895]
[1645339168367,1.117e-05,2637.0,2636.7,1.1895]
[1645339168567,1.117e-05,2637.0,2636.8,3.954]
[1645339168763,1.117e-05,2637.0,2636.9,1.1895]
[1645339168967,0.94893,2637.4,2636.9,0.454]
[1645339169263,0.94893,2637.4,2636.9,0.754]
[1645339169665,0.13819997,2638.1,2636.9,0.754]
[1645339169866,0.13819997,2638.1,2636.9,0.454]
[1645339170069,0.13819997,2638.1,2636.2,3.5]
[1645339170070,52.37584614,2637.8,2636.2,3.5]
[1645339170270,0.01234061,2637.7,2636.1,1.72074616]
[1645339170470,0.2697,2637.5,2636.1,1.72074616]
[1645339170667,0.94913,2637.5,2636.1,1.72074616]
[1645339170930,2.24913,2637.5,2636.1,1.72074616]
[1645339171126,1.0,2637.5,2636.1,1.72074616]
[1645339171323,1.5,2637.5,2636.1,1.72074616]
[1645339171526,1.5,2637.5,2636.1,2.32074616]
[1645339171924,1.5,2637.5,2636.1,3.32074616]
[1645339172124,0.94901,2637.3,2636.1,2.32074616]
[1645339172524,0.94901,2637.3,2636.1,3.32074616]
[1645339172725,0.94901,2637.3,2636.1,2.32074616]
[1645339172926,0.0033108,2637.1,2636.1,2.32074616]
[1645339173827,0.94901,2637.3,2636.1,2.32074616]
[1645339174027,0.00331068,2637.1,2636.1,2.32074616]
[1645339174669,0.00331068,2637.1,2636.1,3.26968616]
[1645339174864,0.00331068,2637.1,2636.2,1.0]
[1645339175064,0.5,2637.5,2636.2,1.0]
[1645339175273,5.0,2636.9,2635.1,7.7814321]
[1645339175464,5.0,2636.9,2634.3,0.37995]
[1645339175465,5.0,2636.7,2634.3,0.37995]
[1645339175666,0.01271409,2636.2,2634.1,0.1896]
[1645339175866,1.24743,2635.9,2635.0,274.1818]
[1645339176071,0.01265355,2635.7,2635.0,242.1382]
[1645339176271,10.67,2635.1,2635.0,188.98486441]
[1645339176466,15.88814,2635.1,2635.0,63.91796441]
[1645339176664,0.95046,2634.7,2633.5,0.6]
[1645339176866,5.5485,2633.9,2633.5,0.6]
[1645339177067,0.9437,2633.8,2633.5,0.6]
[1645339177265,2.85147,2634.3,2633.6,47.0]
[1645339177465,1.90026,2634.2,2633.6,47.0]
[1645339177668,6e-05,2634.2,2633.6,47.0]